bitfinex-derivatives/quotes_SOLF0:USTF0_20250320
["timestamp","ask_amount","ask_price","bid_price","bid_amount"]
[1742496663020,12.63338258,127.48,127.45,7.8504]
[1742496663215,12.63338258,127.48,127.45,7.90216966]
[1742496663216,12.69344943,127.48,127.45,7.90216966]
[1742496664526,12.69344943,127.48,127.45,28.03126966]
[1742496664718,12.69344943,127.48,127.46,7.85]
[1742496665910,20.54254943,127.48,127.45,28.03126966]
[1742496666318,12.63338258,127.47,127.46,7.8501]
[1742496667723,20.54244943,127.48,127.46,7.8501]
[1742496668326,12.69344943,127.48,127.46,7.8501]
[1742496668718,20.54254943,127.48,127.46,7.8501]
[1742496669818,7.8496,127.47,127.45,20.18086966]
[1742496670020,27.98,127.46,127.45,20.18086966]
[1742496670423,27.98,127.46,127.45,28.03106966]
[1742496677430,27.98,127.46,127.45,20.18086966]
[1742496677829,27.98,127.46,127.45,28.03156966]
[1742496678135,40.61338258,127.46,127.38,12.63338258]
[1742496678321,4.1576,127.45,127.38,7.8548]
[1742496678522,12.63338258,127.41,127.36,12.63338258]
[1742496678726,27.98,127.41,127.38,12.63338258]
[1742496678933,27.98,127.43,127.4,12.63338258]
[1742496679239,28.03739533,127.43,127.4,12.63338258]
[1742496680434,28.03739533,127.43,127.42,7.8526]
[1742496681035,28.03739533,127.43,127.41,7.8528]
[1742496681228,28.03739533,127.43,127.4,12.63338258]
[1742496681833,28.03739533,127.43,127.42,7.8526]
[1742496687046,28.03739533,127.43,127.41,7.8529]
[1742496687246,48.52307791,127.43,127.41,7.8529]
[1742496687445,40.67077791,127.43,127.4,7.8535]
[1742496687843,12.63338258,127.42,127.4,7.8535]
[1742496688054,12.63338258,127.41,127.39,7.8541]
[1742496688549,12.69325824,127.41,127.4,7.8538]
[1742496688750,0.05987566,127.41,127.4,7.8538]
[1742496689344,0.05987566,127.41,127.4,20.48718258]
[1742496690646,28.0,127.45,127.4,12.63338258]
[1742496690846,28.0,127.45,127.42,12.63338258]
[1742496691244,35.8508,127.45,127.41,12.63338258]
[1742496691552,28.0,127.45,127.41,12.63338258]
[1742496691855,0.05268569,127.44,127.43,7.8516]
[1742496699057,7.90398569,127.44,127.42,7.90260212]
[1742496699561,0.05268569,127.44,127.43,7.8519]
[1742496703554,7.90398569,127.44,127.42,0.05030212]
[1742496703959,20.53766827,127.44,127.42,7.90260212]
[1742496704157,12.63338258,127.43,127.42,0.05030212]
[1742496704562,0.05268569,127.44,127.42,12.6836847]
[1742496704756,12.63338258,127.5,127.43,12.63338258]
[1742496704960,35.8485,127.49,127.46,20.48298258]
[1742496705156,48.48188258,127.49,127.45,12.63338258]
[1742496705663,48.48188258,127.49,127.46,7.8498]
[1742496706055,12.63338258,127.48,127.46,0.05611059]
[1742496706255,12.63338258,127.47,127.46,0.05611059]
[1742496706760,20.48288258,127.47,127.46,0.05611059]
[1742496707163,48.48288258,127.47,127.46,0.05611059]
[1742496707651,35.8495,127.47,127.46,0.05611059]
[1742496707856,28.0,127.47,127.46,0.05611059]
[1742496708856,35.8495,127.47,127.46,0.05611059]
[1742496709057,28.0,127.47,127.46,7.90621059]
[1742496710365,35.88036996,127.49,127.47,7.8492]
[1742496712066,48.51375254,127.49,127.47,7.8492]
[1742496712262,48.51375254,127.49,127.46,7.90581059]
[1742496712661,48.51375254,127.49,127.46,0.05611059]
[1742496713470,48.51375254,127.49,127.47,7.8494]
[1742496717972,7.8489,127.48,127.46,7.90591059]
[1742496718164,12.63338258,127.48,127.46,0.05611059]
[1742496718575,20.48248258,127.48,127.46,0.05611059]
[1742496719472,7.8495,127.47,127.46,0.05611059]
[1742496720273,20.48258258,127.48,127.46,7.90621059]
[1742496722369,40.66525254,127.49,127.46,0.05611059]
[1742496722566,0.05186996,127.49,127.46,12.68949317]
[1742496722766,0.05186996,127.49,127.47,12.63338258]
[1742496722973,0.05186996,127.49,127.48,7.8489]
[1742496723876,12.63338258,127.53,127.5,7.8471]
[1742496724068,40.61338258,127.53,127.49,12.63338258]
[1742496724373,27.98,127.53,127.49,12.63338258]
[1742496724577,27.98,127.53,127.51,7.8465]
[1742496724874,16.59618258,127.54,127.49,12.63338258]
[1742496725175,28.03518742,127.53,127.52,7.8461]
[1742496725675,0.05518742,127.53,127.52,7.8461]
[1742496725871,0.05518742,127.53,127.51,0.05489655]
[1742496726177,20.53437,127.53,127.51,0.05489655]
[1742496726374,12.68857,127.53,127.51,0.05489655]
[1742496726875,7.8464,127.52,127.51,0.05489655]
[1742496727072,20.47978258,127.52,127.51,0.05489655]
[1742496728474,12.63338258,127.52,127.46,259.02]
[1742496728680,12.63338258,127.48,127.43,40.61338258]
[1742496728976,40.61338258,127.48,127.45,7.8506]
[1742496729179,27.98,127.48,127.45,7.8506]
[1742496729678,28.02978315,127.48,127.45,7.9059898]
[1742496729883,35.87868315,127.48,127.45,7.9059898]
[1742496730879,35.87868315,127.48,127.46,7.8501]
[1742496731878,28.02978315,127.48,127.47,7.8495]
[1742496732080,0.04978315,127.48,127.47,20.48288258]
[1742496733575,12.63338258,127.54,127.47,12.63338258]
[1742496733780,38.43441193,127.57,127.52,12.63338258]
[1742496733977,7.8443,127.56,127.53,7.8455]
[1742496734283,32.5474051,127.57,127.53,12.63338258]
[1742496734575,60.5274051,127.57,127.54,0.05073686]
[1742496734775,0.05312062,127.56,127.54,0.05073686]
[1742496735171,0.05312062,127.56,127.54,7.89553686]
[1742496735372,0.05312062,127.56,127.54,0.05073686]
[1742496735568,0.05312062,127.56,127.55,20.47798258]
[1742496736174,0.05312062,127.56,127.54,20.52891944]
[1742496736380,0.05312062,127.56,127.54,7.89553686]
[1742496736782,7.89722062,127.56,127.54,0.05073686]
[1742496737776,7.8446,127.55,127.54,0.05073686]
[1742496738379,35.8246,127.55,127.54,0.05073686]
[1742496738777,27.98,127.55,127.54,0.05073686]
[1742496739586,35.8246,127.55,127.54,0.05073686]
[1742496740786,27.98,127.55,127.54,0.05073686]
[1742496740989,0.05312062,127.56,127.54,0.05073686]
[1742496741388,0.05312062,127.56,127.55,7.8446]
[1742496743399,27.98,127.6,127.55,47.7122819]
[1742496743599,19.7322819,127.64,127.55,54.1198819]
[1742496743892,7.8406,127.62,127.59,7.842]
[1742496744298,27.98,127.63,127.55,54.1198819]
[1742496744498,0.0500018,127.62,127.59,0.05114559]
[1742496744699,27.98,127.61,127.59,0.05114559]
[1742496745094,0.0500018,127.62,127.59,0.05114559]
[1742496745299,0.0500018,127.62,127.59,19.78342749]
[1742496745503,0.0500018,127.62,127.61,7.8409]
[1742496746092,0.0500018,127.62,127.6,7.8412]
[1742496747501,0.0500018,127.62,127.59,7.89294559]
[1742496747905,0.0500018,127.62,127.59,0.05114559]
[1742496750007,7.8411,127.61,127.59,7.89314559]
[1742496750713,7.8411,127.61,127.59,0.05114559]
[1742496750907,0.0500018,127.62,127.59,0.05114559]
[1742496751314,0.0500018,127.62,127.59,7.89294559]
[1742496751612,7.8905018,127.62,127.59,7.89294559]
[1742496751810,0.0500018,127.62,127.59,7.89294559]
[1742496752208,7.8412,127.61,127.59,0.05114559]
[1742496752613,0.0500018,127.62,127.59,0.05114559]
[1742496753209,0.0500018,127.62,127.61,7.8409]
[1742496754603,0.0500018,127.62,127.59,28.01114559]
[1742496754811,0.0500018,127.62,127.6,7.8413]
[1742496755015,0.0500018,127.62,127.59,28.01114559]
[1742496755416,0.0500018,127.62,127.6,7.8415]
[1742496756414,0.0500018,127.62,127.59,35.85294559]
[1742496757113,0.0500018,127.62,127.59,7.89294559]
[1742496757316,7.8906018,127.62,127.6,7.8413]
[1742496757910,0.0500018,127.62,127.61,7.8409]
[1742496758813,27.98,127.65,127.63,7.8392]
[1742496759016,19.7322819,127.68,127.6,47.6922819]
[1742496759212,27.98,127.66,127.65,7.8384]
[1742496759610,27.98,127.68,127.62,19.7322819]
[1742496759918,0.05752529,127.66,127.64,0.0512731]
[1742496761814,0.05752529,127.66,127.64,7.8899731]
[1742496762418,0.05752529,127.66,127.65,7.8384]
[1742496762917,0.05752529,127.66,127.64,7.8899731]
[1742496763317,7.89542529,127.66,127.64,0.0512731]
[1742496763513,0.05752529,127.66,127.64,0.0512731]
[1742496763920,7.8384,127.65,127.64,0.0512731]
[1742496764324,35.8184,127.65,127.64,0.0512731]
[1742496765926,7.8409,127.61,127.6,258.74]
[1742496766222,47.7122819,127.65,127.6,258.74]
[1742496766517,7.8405,127.62,127.6,258.74]
[1742496767124,7.89508184,127.62,127.6,266.63124358]
[1742496768624,7.89508184,127.62,127.6,258.78984358]
[1742496768820,7.8409,127.61,127.6,258.78984358]
[1742496769522,7.89518184,127.62,127.6,258.78984358]
[1742496770917,7.89518184,127.62,127.6,266.63124358]
[1742496772119,7.89518184,127.62,127.6,258.78984358]
[1742496772623,7.8409,127.61,127.6,258.78984358]
[1742496773625,7.89518184,127.62,127.6,266.63124358]
[1742496774824,7.89518184,127.62,127.6,0.04984358]
[1742496776024,7.8409,127.61,127.6,0.04984358]
[1742496777126,7.89518184,127.62,127.6,0.04984358]
[1742496777427,7.89518184,127.62,127.6,7.89094358]
[1742496778523,7.89518184,127.62,127.6,0.04984358]
[1742496780532,7.89518184,127.62,127.6,7.89134358]
[1742496781436,0.05458184,127.62,127.61,7.8409]
[1742496781727,12.61554912,127.67,127.61,12.61554912]
[1742496781932,35.7981,127.66,127.63,20.45454912]
[1742496782332,27.96,127.66,127.63,20.45454912]
[1742496782534,27.96,127.66,127.63,7.839]
[1742496782728,7.8388,127.65,127.63,7.839]
[1742496782928,7.8388,127.65,127.63,7.89923884]
[1742496783129,28.01979123,127.66,127.63,7.89923884]
[1742496783330,7.8387,127.65,127.63,7.89923884]
[1742496785039,35.85789123,127.66,127.63,7.89923884]
[1742496785237,28.01979123,127.66,127.63,20.51478796]
[1742496785637,7.8385,127.65,127.63,20.51478796]
[1742496786033,7.8385,127.65,127.63,7.89923884]
[1742496790339,7.839,127.64,127.63,0.06023884]
[1742496793046,20.45454912,127.64,127.63,0.06023884]
[1742496795039,7.839,127.64,127.63,0.06023884]
[1742496805352,20.45434912,127.65,127.63,0.06023884]
[1742496805652,35.7788,127.65,127.63,0.06023884]
[1742496806242,7.839,127.64,127.63,0.06023884]
[1742496806650,27.94,127.65,127.63,7.89983884]
[1742496806955,35.7788,127.65,127.63,0.06023884]
[1742496807454,27.94,127.65,127.63,0.06023884]
[1742496808151,27.94,127.65,127.64,7.839]
[1742496808850,27.99979123,127.66,127.63,12.67578796]
[1742496809052,0.05979123,127.66,127.64,12.61554912]
[1742496809251,0.05979123,127.66,127.65,7.8384]
[1742496810656,7.89779123,127.66,127.64,7.8387]
[1742496810861,7.89779123,127.66,127.63,12.67578796]
[1742496811153,7.839,127.64,127.63,0.06023884]
[1742496812159,20.45434912,127.65,127.63,0.06023884]
[1742496812851,20.45434912,127.65,127.63,7.89973884]
[1742496813256,0.05979123,127.66,127.63,12.67578796]
[1742496813456,0.05979123,127.66,127.64,12.61554912]
[1742496813960,0.05979123,127.66,127.65,7.8384]
[1742496817163,0.05979123,127.66,127.65,20.45394912]
[1742496819951,9.123e-05,127.66,127.65,20.45394912]
[1742496820156,27.94,127.71,127.7,7.835]
[1742496821064,35.7744,127.72,127.7,7.835]
[1742496821253,35.82989899,127.72,127.7,7.835]
[1742496821458,27.99549899,127.72,127.7,7.835]
[1742496822065,27.99549899,127.72,127.69,0.05326885]
[1742496822066,35.82969899,127.72,127.69,0.05326885]
[1742496822556,35.82969899,127.72,127.69,7.88896885]
[1742496824161,12.61554912,127.71,127.69,0.05326885]
[1742496824364,12.61554912,127.7,127.69,0.05326885]
[1742496824564,12.61554912,127.7,127.64,12.61554912]
[1742496824759,12.61554912,127.68,127.64,7.8388]
[1742496825068,27.94,127.67,127.63,12.61554912]
[1742496825365,7.8381,127.66,127.63,20.45474912]
[1742496825866,7.8948812,127.66,127.63,20.50849609]
[1742496826055,7.8948812,127.66,127.64,7.8389]
[1742496829170,0.0567812,127.66,127.64,7.8389]
[1742496830267,0.0567812,127.66,127.64,12.61554912]
[1742496830467,0.0567812,127.66,127.65,12.61554912]
[1742496831274,0.0567812,127.66,127.65,20.45394912]
[1742496836478,27.94,127.69,127.68,7.8366]
[1742496836679,27.94,127.71,127.68,12.61554912]
[1742496836879,27.94,127.71,127.67,12.61554912]
[1742496837083,27.94,127.71,127.67,20.45224912]
[1742496837281,40.55554912,127.71,127.67,12.61554912]
[1742496837581,40.55554912,127.71,127.68,0.06024493]
[1742496837786,0.0539108,127.7,127.68,0.06024493]
[1742496838286,0.0539108,127.7,127.68,7.89654493]
[1742496838488,7.836,127.69,127.68,0.06024493]
[1742496840488,20.45154912,127.69,127.68,0.06024493]
[1742496841582,12.61554912,127.69,127.68,0.06024493]
[1742496841885,0.0539108,127.7,127.68,0.06024493]
[1742496842284,7.8896108,127.7,127.68,0.06024493]
[1742496842587,0.0539108,127.7,127.68,7.89634493]
[1742496843883,0.0539108,127.7,127.69,7.836]
[1742496847295,0.0539108,127.7,127.69,20.45154912]
[1742496850494,7.8892108,127.7,127.68,20.51219405]
[1742496850694,7.8892108,127.7,127.68,7.89664493]
[1742496851001,0.0539108,127.7,127.68,0.06024493]
[1742496851503,7.836,127.69,127.68,0.06024493]
[1742496851694,35.776,127.69,127.68,0.06024493]
[1742496852795,48.39154912,127.69,127.68,0.06024493]
[1742496853902,12.61554912,127.66,127.62,258.66]
[1742496854103,27.94,127.65,127.62,258.66]
[1742496854298,7.8394,127.64,127.62,258.66]
[1742496854503,12.61554912,127.64,127.6,12.61554912]
[1742496854800,7.84,127.63,127.6,20.45664912]
[1742496855002,7.8934811,127.63,127.61,0.05543454]
[1742496855398,0.0534811,127.63,127.61,0.05543454]
[1742496857102,12.66903022,127.63,127.61,0.05543454]
[1742496857604,7.8403,127.62,127.61,0.05543454]
[1742496857797,35.7803,127.62,127.61,0.05543454]
[1742496863606,7.8419,127.6,127.57,258.58]
[1742496863806,7.8419,127.6,127.58,7.8427]
[1742496864109,7.8419,127.6,127.57,258.58]
[1742496864406,7.8412,127.61,127.58,7.8423]
[1742496864606,0.05675933,127.6,127.58,7.8423]
[1742496865199,0.05675933,127.6,127.57,271.25270541]
[1742496865909,0.05675933,127.6,127.58,7.8427]
[1742496866908,0.05675933,127.6,127.57,271.25270541]
[1742496870908,0.05675933,127.6,127.59,12.61554912]
[1742496871106,12.61554912,127.65,127.59,12.61554912]
[1742496871107,20.45424912,127.65,127.59,12.61554912]
[1742496871308,27.94,127.64,127.6,12.61554912]
[1742496871500,20.45374912,127.66,127.63,7.8396]
[1742496871705,27.94,127.65,127.63,7.8396]
[1742496872305,35.83859143,127.65,127.63,7.89136245]
[1742496873112,7.89859143,127.65,127.63,7.89136245]
[1742496873323,35.83859143,127.65,127.63,7.89136245]
[1742496875004,35.83859143,127.65,127.63,0.05176245]
[1742496878011,7.839,127.64,127.63,0.05176245]
[1742496880413,35.83889143,127.65,127.63,0.05176245]
[1742496880610,28.00019143,127.65,127.63,7.89136245]
[1742496880911,28.00019143,127.65,127.63,12.66731157]
[1742496881413,28.00019143,127.65,127.64,7.839]
[1742496882107,0.06019143,127.65,127.64,7.839]
[1742496882811,0.06019143,127.65,127.63,7.89106245]
[1742496883416,0.06019143,127.65,127.64,7.839]
[1742496885010,7.89859143,127.65,127.63,7.89116245]
[1742496885412,7.839,127.64,127.63,0.05176245]
[1742496885705,20.45454912,127.64,127.63,0.05176245]
[1742496887215,12.61554912,127.64,127.63,0.05176245]
[1742496887424,0.06019143,127.65,127.63,0.05176245]
[1742496887714,0.06019143,127.65,127.63,12.66731157]
[1742496888323,0.06019143,127.65,127.64,7.839]
[1742496890018,0.06019143,127.65,127.64,20.45454912]
[1742496905432,0.06019143,127.65,127.64,7.839]
[1742496907740,0.06019143,127.65,127.63,20.50671157]
[1742496908835,7.89859143,127.65,127.63,0.05176245]
[1742496909038,0.06019143,127.65,127.63,0.05176245]
[1742496909235,0.06019143,127.65,127.63,7.89096245]
[1742496910545,0.06019143,127.65,127.63,0.05176245]
[1742496910745,27.94,127.64,127.63,0.05176245]
[1742496911045,35.779,127.64,127.63,0.05176245]
[1742496911544,48.39454912,127.64,127.63,0.05176245]
[1742496913035,7.8404,127.62,127.59,12.61554912]
[1742496913235,40.55554912,127.64,127.59,12.61554912]
[1742496913439,40.55554912,127.64,127.6,7.8412]
[1742496913635,7.8399,127.63,127.6,7.8412]
[1742496914237,7.89976237,127.63,127.61,7.8409]
[1742496914940,0.05986237,127.63,127.61,7.8409]
[1742496915453,7.8403,127.62,127.6,7.89175732]
[1742496915853,27.94,127.61,127.6,7.89175732]
[1742496916253,27.94,127.61,127.6,0.05065732]
[1742496916552,27.99986237,127.63,127.6,12.66620644]
[1742496917147,27.99986237,127.63,127.61,12.61554912]
[1742496917647,27.99986237,127.63,127.62,7.8403]
[1742496924458,0.05986237,127.63,127.62,20.45584912]
[1742496924666,27.94,127.66,127.65,7.8382]
[1742496924959,16.82124912,127.68,127.65,7.8382]
[1742496924960,27.94,127.67,127.65,7.8382]
[1742496925854,27.99890302,127.67,127.65,7.89434983]
[1742496926451,35.83640302,127.67,127.65,0.05614983]
[1742496926655,27.99890302,127.67,127.65,0.05614983]
[1742496927154,35.83660302,127.67,127.65,0.05614983]
[1742496928657,48.45215214,127.67,127.65,0.05614983]
[1742496929058,7.8378,127.66,127.65,0.05614983]
[1742496929360,20.45334912,127.66,127.65,0.05614983]
[1742496931361,7.8378,127.66,127.65,0.05614983]
[1742496935262,20.45334912,127.66,127.65,0.05614983]
[1742496936660,7.8395,127.64,127.61,12.61554912]
[1742496936868,27.94,127.64,127.6,12.61554912]
[1742496937265,7.8399,127.63,127.6,20.45664912]
[1742496937568,40.55554912,127.64,127.6,12.61554912]
[1742496937763,48.39514912,127.64,127.61,7.8405]
[1742496937963,0.05497389,127.63,127.61,7.89800674]
[1742496939169,7.89487389,127.63,127.61,7.89800674]
[1742496943170,7.89487389,127.63,127.61,0.05750674]
[1742496943667,7.8403,127.62,127.61,0.05750674]
[1742496943874,12.61554912,127.62,127.55,12.61554912]
[1742496944080,12.61554912,127.59,127.55,12.61554912]
[1742496944372,20.45804912,127.59,127.56,7.8437]
[1742496944674,7.8425,127.59,127.56,7.8437]
[1742496944875,20.45744912,127.6,127.57,7.8433]
[1742496945076,0.05749989,127.59,127.57,7.8433]
[1742496945664,0.05749989,127.59,127.58,7.8427]
[1742496948776,0.05749989,127.59,127.56,0.05897261]
[1742496948975,12.67304901,127.59,127.56,0.05897261]
[1742496949169,7.843,127.58,127.56,0.05897261]
[1742496949363,48.39854912,127.58,127.56,0.05897261]
[1742496949869,7.8433,127.57,127.56,0.05897261]
[1742496950176,40.55554912,127.58,127.56,7.90287261]
[1742496950368,48.39854912,127.58,127.56,0.05897261]
[1742496950770,40.55554912,127.58,127.56,0.05897261]
[1742496951771,40.55554912,127.58,127.56,7.90257261]
[1742496952268,40.55554912,127.58,127.56,0.05897261]
[1742496952269,48.39834912,127.58,127.56,0.05897261]
[1742496953278,48.39834912,127.58,127.56,7.90287261]
[1742496953669,40.55554912,127.58,127.56,0.05897261]
[1742496953869,12.61554912,127.57,127.56,0.05897261]
[1742496954069,20.45884912,127.57,127.56,0.05897261]
[1742496954276,12.61554912,127.54,127.5,12.61554912]
[1742496954477,40.55554912,127.54,127.5,12.61554912]
[1742496954976,40.55554912,127.54,127.52,7.8464]
[1742496955371,40.60659377,127.54,127.52,7.90003163]
[1742496955571,40.60659377,127.54,127.52,0.05363163]
[1742496955765,27.99104465,127.54,127.53,7.8458]
[1742496959071,27.99104465,127.54,127.52,12.66918075]
[1742496960074,27.99104465,127.54,127.53,7.8458]
[1742496961773,27.99104465,127.54,127.52,7.89973163]
[1742496962272,35.83634465,127.54,127.52,7.89973163]
[1742496963281,27.99104465,127.54,127.52,7.89973163]
[1742496963879,27.99104465,127.54,127.53,7.8458]
[1742496965267,27.99104465,127.54,127.52,0.05363163]
[1742496965476,40.60659377,127.54,127.52,0.05363163]
[1742496965676,12.61554912,127.53,127.52,0.05363163]
[1742496965976,20.46134912,127.53,127.52,0.05363163]
[1742496966175,12.61554912,127.53,127.47,12.61554912]
[1742496966376,12.61554912,127.52,127.47,12.61554912]
[1742496966674,40.55554912,127.51,127.46,12.61554912]
[1742496966880,27.94,127.5,127.47,7.849]
[1742496967070,40.55554912,127.5,127.46,12.61554912]
[1742496967275,40.60733576,127.5,127.47,0.0537023]
[1742496967475,27.99178664,127.5,127.47,12.66925142]
[1742496967775,27.99178664,127.5,127.48,12.61554912]
[1742496967976,27.99178664,127.5,127.49,7.8483]
[1742496972477,40.60733576,127.5,127.47,0.0537023]
[1742496972788,12.61554912,127.49,127.47,0.0537023]
[1742496975077,20.46404912,127.49,127.47,0.0537023]
[1742496975377,12.61554912,127.48,127.47,0.0537023]
[1742496975787,20.46444912,127.48,127.47,0.0537023]
[1742496975988,12.61554912,127.48,127.47,0.0537023]
[1742496978187,20.46444912,127.48,127.47,0.0537023]
[1742496978784,7.8489,127.48,127.47,0.0537023]
[1742496979090,20.46444912,127.48,127.47,0.0537023]
[1742496980787,20.46404912,127.49,127.47,0.0537023]
[1742496980976,40.60733576,127.5,127.48,7.8486]
[1742496981175,40.60733576,127.5,127.47,0.0537023]
[1742496981379,48.45533576,127.5,127.47,0.0537023]
[1742496981590,27.99178664,127.5,127.48,7.8486]
[1742496981785,40.60733576,127.5,127.48,7.8486]
[1742496981981,27.96,127.49,127.48,7.8486]
[1742496982979,0.05178664,127.5,127.49,7.8483]
[1742496983485,28.01178664,127.5,127.49,7.8483]
[1742496984387,0.05178664,127.5,127.49,20.46384912]
[1742496987297,0.05178664,127.5,127.48,7.8488]
[1742496987797,0.05178664,127.5,127.49,7.8483]
[1742496987997,28.01178664,127.5,127.49,7.8483]
[1742496992496,28.01178664,127.5,127.48,7.8486]
[1742496992901,28.01178664,127.5,127.47,12.66925142]
[1742496993302,28.01178664,127.5,127.49,7.8483]
[1742496993696,0.05178664,127.5,127.49,20.46384912]
[1742496995906,0.05178664,127.5,127.49,7.8483]
[1742496996105,0.05178664,127.5,127.48,7.8485]
[1742496996902,0.05178664,127.5,127.49,7.8483]
[1742496998000,0.05178664,127.5,127.48,7.8485]
[1742496998405,28.01178664,127.5,127.48,7.8485]
[1742496998998,35.85968664,127.5,127.47,7.9029023]
[1742496999200,48.47523576,127.5,127.47,7.9029023]
[1742496999396,40.62733576,127.5,127.47,0.0537023]
[1742496999601,40.62733576,127.5,127.48,7.8484]
[1742496999801,28.01178664,127.5,127.48,7.8484]
[1742497000001,28.01178664,127.5,127.47,0.0537023]
[1742497000002,40.62733576,127.5,127.47,0.0537023]
[1742497000597,40.62733576,127.5,127.48,7.8485]
[1742497000802,28.01178664,127.5,127.47,0.0537023]
[1742497001209,28.01178664,127.5,127.49,7.8483]
[1742497006509,40.62733576,127.5,127.47,0.0537023]
[1742497006706,12.61554912,127.48,127.47,0.0537023]
[1742497007107,20.46444912,127.48,127.47,0.0537023]
[1742497012413,0.05174257,127.43,127.42,7.8526]
[1742497013203,0.05174257,127.43,127.42,20.46814912]
[1742497015113,0.05174257,127.43,127.42,7.8526]
[1742497016020,0.05174257,127.43,127.41,7.853]
[1742497016211,0.05174257,127.43,127.39,271.57554912]
[1742497016613,0.05174257,127.43,127.42,7.8526]
[1742497017512,28.01174257,127.43,127.42,7.8526]
[1742497022223,40.62729169,127.43,127.4,7.8533]
[1742497022426,12.61554912,127.42,127.39,258.96]
[1742497022822,12.61554912,127.42,127.41,7.8532]
[1742497023124,12.61554912,127.42,127.39,258.96]
[1742497023921,12.61554912,127.42,127.4,7.8535]
[1742497024728,40.62729169,127.43,127.41,7.8532]
[1742497024920,28.01174257,127.43,127.4,12.61554912]
[1742497025326,28.01174257,127.43,127.42,7.8526]
[1742497027016,28.01174257,127.43,127.41,7.8528]
[1742497027225,28.01174257,127.43,127.38,14.76964912]
[1742497027226,40.62729169,127.43,127.38,14.76964912]
[1742497027414,12.61554912,127.42,127.37,16.91204912]
[1742497027617,12.61554912,127.41,127.39,7.8542]
[1742497027817,27.96,127.4,127.39,7.8542]
[1742497029024,27.96,127.4,127.39,20.46974912]
[1742497029224,27.96,127.4,127.39,7.8542]
[1742497031222,27.96,127.4,127.39,20.46974912]
[1742497031424,27.96,127.42,127.39,12.61554912]
[1742497031820,27.96,127.42,127.41,7.8532]
[1742497036027,0.05174257,127.43,127.42,7.8526]
[1742497036330,28.01174257,127.43,127.42,7.8526]
[1742497046531,0.05174257,127.43,127.42,7.8526]
[1742497055247,0.05174257,127.43,127.41,7.8529]
[1742497055442,0.05174257,127.43,127.38,259.1]
[1742497055443,12.61554912,127.42,127.38,259.1]
[1742497055643,40.57554912,127.42,127.38,259.1]
[1742497056049,48.42814912,127.42,127.4,7.8535]
[1742497056249,40.57554912,127.42,127.4,7.8535]
[1742497056441,40.57554912,127.42,127.38,259.1]
[1742497057150,27.96,127.42,127.38,259.1]
[1742497057345,27.96,127.42,127.41,7.8532]
[1742497063548,35.8126,127.42,127.4,7.8535]
[1742497063749,35.8126,127.42,127.38,271.71554912]
[1742497064048,27.96,127.42,127.38,271.71554912]
[1742497064356,27.96,127.42,127.4,7.8532]
[1742497064563,27.96,127.42,127.38,271.71554912]
[1742497064851,27.96,127.42,127.41,7.8532]
[1742497065153,35.8126,127.42,127.38,12.61554912]
[1742497065548,35.8126,127.42,127.4,7.8534]
[1742497065744,27.96,127.42,127.39,12.61554912]
[1742497065954,27.96,127.42,127.41,7.8532]
[1742497066151,27.96,127.42,127.37,2.1905]
[1742497066357,27.96,127.42,127.37,14.80604912]
[1742497066553,27.96,127.42,127.38,12.61554912]
[1742497066754,27.96,127.42,127.41,7.8532]
[1742497073265,35.8126,127.42,127.4,7.8535]
[1742497073467,27.96,127.42,127.37,42.76604912]
[1742497073864,27.96,127.42,127.38,12.61554912]
[1742497074166,27.96,127.42,127.41,7.8532]
[1742497074767,0.05174257,127.43,127.42,7.8526]
[1742497080371,28.01174257,127.43,127.42,7.8526]
[1742497081161,28.01174257,127.43,127.41,7.8528]
[1742497081362,48.47959169,127.43,127.41,7.8528]
[1742497081562,12.61554912,127.42,127.37,42.76604912]
[1742497081960,12.61554912,127.42,127.41,7.8532]
[1742497083069,20.46814912,127.42,127.4,7.8535]
[1742497085672,20.46814912,127.42,127.41,7.8532]
[1742497085874,48.47959169,127.43,127.41,7.8532]
[1742497086176,48.47959169,127.43,127.41,7.8528]
[1742497086678,35.86404257,127.43,127.39,12.61554912]
[1742497087276,28.01174257,127.43,127.39,12.61554912]
[1742497087474,28.01174257,127.43,127.42,7.8526]
[1742497088979,0.05174257,127.43,127.42,7.8526]
[1742497091973,20.51919169,127.43,127.41,7.8528]
[1742497092166,12.61554912,127.42,127.37,42.76604912]
[1742497092672,20.46834912,127.42,127.4,7.8537]
[1742497093068,12.61554912,127.42,127.37,42.76604912]
[1742497093275,48.42894912,127.41,127.39,7.8542]
[1742497093672,40.57554912,127.41,127.36,12.61554912]
[1742497093872,7.8538,127.4,127.38,7.8546]